Cogmind - Beta 11 X10 --- EXPLORER MODE // 2022.03.02 @ 07:29:34 Player: maxwell Result: Self-destructed Performance ------------- Evolutions (4) 2000 Regions Visited (9) 1800 Robots Destroyed (0) 0 Value Destroyed (0) 0 Prototype IDs (1) 20 Alien Tech Used (0) 0 Bonus (1825) 1825 TOTAL SCORE: 5645 Bonus ------- Pacifist 1325 Entered DSFs 500 Cogmind --------- Core Integrity 107/850 Matter 106/300 Energy 100/100 System Corruption 4% Temperature Cool (0) Movement Core (50) Location -6/Extension Parts ------- > --- POWER (2) -------- (None) > --- PROPULSION (8) --- (None) > --- UTILITY (4) ------ (None) > --- WEAPON (2) ------- (None) > --- INVENTORY (5) ---- (None) Peak State ------------ > --- POWER ------------ Nuclear Core > --- PROPULSION ------- Improved Carbon-fiber Leg Improved Carbon-fiber Leg Improved Titanium Leg Improved Titanium Leg Improved Titanium Leg Improved Titanium Leg > --- UTILITY ---------- (None) > --- WEAPON ----------- (None) > --- INVENTORY -------- (None) [Rating: 27] Favorites ----------- Power Nuclear Core Power Core Nuclear Core Propulsion Improved Titanium Leg Leg Improved Titanium Leg Hover Unit Improved Gravmag System Flight Unit Improved VTOL Module Utility Transmission Jammer Device Transmission Jammer Protection Propulsion Shielding Weapon None Build | -11 -10 -10 -9 -9 -8 -7 -7 -6 -6 ------- Run | Scr Mat Min Mat Sto Mat Fac DSF Fac Ext Slots Evolved 9 | . 1 . 2 . 2 2 . 2 . Power 1 | . . . . . 1 . . . . Propulsion 6 | . 1 . . . 1 2 . 2 . Utility 2 | . . . 2 . . . . . . Weapon . | . . . . . . . . . . Parts Attached 15 | . . . . . . . 9 6 . Power 2 | . . . . . . . 1 1 . Engine . | . . . . . . . . . . Core 2 | . . . . . . . 1 1 . Reactor . | . . . . . . . . . . Propulsion 11 | . . . . . . . 7 4 . Treads . | . . . . . . . . . . Leg 8 | . . . . . . . 7 1 . Wheel . | . . . . . . . . . . Hover 1 | . . . . . . . . 1 . Flight 2 | . . . . . . . . 2 . Utility 2 | . . . . . . . 1 1 . Device 1 | . . . . . . . . 1 . Storage . | . . . . . . . . . . Processor . | . . . . . . . . . . Hackware . | . . . . . . . . . . Protection 1 | . . . . . . . 1 . . Artifact . | . . . . . . . . . . Weapon . | . . . . . . . . . . Energy Gun . | . . . . . . . . . . Energy Cannon . | . . . . . . . . . . Ballistic Gun . | . . . . . . . . . . Ballistic Cannon . | . . . . . . . . . . Launcher . | . . . . . . . . . . Special Weapon . | . . . . . . . . . . Impact Weapon . | . . . . . . . . . . Slashing Weapon . | . . . . . . . . . . Piercing Weapon . | . . . . . . . . . . Special Melee Weapon . | . . . . . . . . . . Unidentified Prototypes 1 | . . . . . . . . 1 . Corrupted Parts 2 | . . . . . . . . 2 . System Corruption 4 | . . . . . . . . 4 . Parts Lost 13 | . . . . . . . 1 12 . Power 2 | . . . . . . . . 2 . Propulsion 9 | . . . . . . . . 9 . Utility 2 | . . . . . . . 1 1 . Weapon . | . . . . . . . . . . Highest Loss Streak 9 | . . . . . . . 1 9 . To Critical Strikes . | . . . . . . . . . . Average Slot Usage (%) 10 | . . . . . . . 27 17 . Core 2 | . . . . . . . 4 3 . Leg 7 | . . . . . . . 21 11 . Naked Turns 312 | . 37 12 43 83 42 2 3 48 42 Heaviest Build 11 | . . . . . . . 8 11 . Greatest Support 116 | 3 3 3 3 3 3 3 116 76 3 Greatest Overweight (x) . | . . . . . . . . . . Average Overweight (x) . | . . . . . . . . . . Largest Inventory Capacity 5 | 5 5 5 5 5 5 5 5 5 5 Average Capacity 5 | 5 5 5 5 5 5 5 5 5 5 Most Carried 1 | . . . . . 1 1 1 . . Average Carried . | . . . . . . 1 . . . Final Capacity 5 | 5 5 5 5 5 5 5 5 5 5 Final Carried 1 | . . . . . 1 1 . . . Class Distribution -------------------- 100% | Hacker-Mutant Dominant Class ---------------- Hacker-Mutant | -10/Materials Hacker-Mutant | -10/Mines Hacker-Mutant | -9/Materials Hacker-Mutant | -9/Storage Hacker-Mutant | -8/Materials Hacker-Mutant | -7/Factory Hacker-Mutant | -7/DSF Hacker-Mutant | -6/Factory Hacker-Mutant | -6/Extension Resources | -11 -10 -10 -9 -9 -8 -7 -7 -6 -6 ----------- Run | Scr Mat Min Mat Sto Mat Fac DSF Fac Ext Matter Collected 61 | 60 . . . . . . . 1 . Remotely . | . . . . . . . . . . Salvage Created . | . . . . . . . . . . Parts . | . . . . . . . . . . Haulers Intercepted . | . . . . . . . . . . Recyclers Shooed . | . . . . . . . . . . Parts Field Recycled . | . . . . . . . . . . Retrieved Matter . | . . . . . . . . . . Parts Self-Destructed . | . . . . . . . . . . Prevented . | . . . . . . . . . . Kills | -11 -10 -10 -9 -9 -8 -7 -7 -6 -6 ------- Run | Scr Mat Min Mat Sto Mat Fac DSF Fac Ext Combat Hostiles Destroyed . | . . . . . . . . . . Classes Destroyed . | . . . . . . . . . . Best Kill Streak . | . . . . . . . . . . Combat Bots Only . | . . . . . . . . . . Max Kills in Single Turn . | . . . . . . . . . . Gunslinging . | . . . . . . . . . . Exploded . | . . . . . . . . . . Melee . | . . . . . . . . . . Uniques/NPCs Destroyed . | . . . . . . . . . . Combat | -11 -10 -10 -9 -9 -8 -7 -7 -6 -6 -------- Run | Scr Mat Min Mat Sto Mat Fac DSF Fac Ext Damage Taken 2301 | . 45 4 55 165 121 . 358 1553 . Core 1222 | . 45 4 55 165 121 . 89 743 . Absorbed by Shields . | . . . . . . . . . . Redirected to Shielding 23 | . . . . . . . 23 . . Core Remaining (%) 78 | 100 . 80 . 45 78 . 87 . . Volleys Fired . | . . . . . . . . . . Largest . | . . . . . . . . . . Hottest . | . . . . . . . . . . Shots Fired . | . . . . . . . . . . Gun . | . . . . . . . . . . Cannon . | . . . . . . . . . . Launcher . | . . . . . . . . . . Special . | . . . . . . . . . . Kinetic . | . . . . . . . . . . Thermal . | . . . . . . . . . . Explosive . | . . . . . . . . . . Electromagnetic . | . . . . . . . . . . Robot Hit Streak . | . . . . . . . . . . Robot Miss Streak . | . . . . . . . . . . Penetration Max . | . . . . . . . . . . Secondary Targets . | . . . . . . . . . . Shots Hit Robots . | . . . . . . . . . . Core Hits 1 | . . . . . . . . 1 . Critical Kills . | . . . . . . . . . . Critical Parts Destroyed . | . . . . . . . . . . Critical Strikes . | . . . . . . . . . . Melee Attacks . | . . . . . . . . . . Impact . | . . . . . . . . . . Slashing . | . . . . . . . . . . Piercing . | . . . . . . . . . . Sneak Attacks . | . . . . . . . . . . Combat Hostiles . | . . . . . . . . . . Follow-up Attacks . | . . . . . . . . . . Damage Inflicted 70 | . . 11 3 40 . . 3 13 . Guns . | . . . . . . . . . . Cannons . | . . . . . . . . . . Explosions . | . . . . . . . . . . Melee . | . . . . . . . . . . Ramming 70 | . . 11 3 40 . . 3 13 . Kinetic . | . . . . . . . . . . Thermal . | . . . . . . . . . . Explosive . | . . . . . . . . . . Electromagnetic . | . . . . . . . . . . Impact . | . . . . . . . . . . Slashing . | . . . . . . . . . . Piercing . | . . . . . . . . . . Highest Corruption 4 | . . . . . . . . 4 4 Average Corruption 3 | . . . . . . . . 3 4 Corruption Purged . | . . . . . . . . . . Corruption Blocked . | . . . . . . . . . . Effects 2 | . . . . . . . . 2 . Message Errors 1 | . . . . . . . . 1 . Heat Flow Errors 1 | . . . . . . . . 1 . Overload Shots . | . . . . . . . . . . Overflow Damage . | . . . . . . . . . . Projectiles . | . . . . . . . . . . Explosions . | . . . . . . . . . . Melee . | . . . . . . . . . . Knockbacks 1 | . . . . 1 . . . . . Impact 1 | . . . . 1 . . . . . Kinetic . | . . . . . . . . . . Secondary . | . . . . . . . . . . Self-Inflicted Damage 27 | . . 4 1 19 . . . 3 . Shots . | . . . . . . . . . . Rammed 11 | . . 3 1 4 . . . 3 . Targets Rammed 16 | . . 3 1 4 . . 2 6 . Kicked 5 | . . . . . . . 2 3 . Crushed . | . . . . . . . . . . Highest Temperature 124 | . . . . . . . . 124 . Average Temperature 70 | . . . . . . . . 70 . Received Heat Transfer 324 | . 6 . 39 84 45 . . 150 . Siege Activations . | . . . . . . . . . . Robots Corrupted . | . . . . . . . . . . Combat Hostiles . | . . . . . . . . . . Parts Fried . | . . . . . . . . . . Impact Corruptions . | . . . . . . . . . . Robots Melted . | . . . . . . . . . . Combat Hostiles . | . . . . . . . . . . Parts Melted . | . . . . . . . . . . Heat Transferred . | . . . . . . . . . . Parts Sabotaged . | . . . . . . . . . . Parts Stolen . | . . . . . . . . . . Parts Stripped . | . . . . . . . . . . Power Chain Reactions . | . . . . . . . . . . Missiles Intercepted . | . . . . . . . . . . Alert | -11 -10 -10 -9 -9 -8 -7 -7 -6 -6 ------- Run | Scr Mat Min Mat Sto Mat Fac DSF Fac Ext Peak Influence 192 | . 30 8 32 166 95 31 36 192 99 Initial 69 | . . 8 2 9 50 31 16 13 69 Average 35 | . 2 8 25 60 57 31 23 30 69 Maximum Alert Level . | . . . . . . . . . . Low Security (%) 100 | 100 100 100 100 100 100 100 100 100 100 Level 1 . | . . . . . . . . . . Level 2 . | . . . . . . . . . . Level 3 . | . . . . . . . . . . Level 4 . | . . . . . . . . . . Level 5 . | . . . . . . . . . . High Security . | . . . . . . . . . . Max Security . | . . . . . . . . . . Squads Dispatched 9 | . . . 1 3 . . 1 4 . Investigation . | . . . . . . . . . . Extermination 1 | . . . . . . . . 1 . Reinforcement 8 | . . . 1 3 . . 1 3 . Assault . | . . . . . . . . . . Garrison . | . . . . . . . . . . Intercept . | . . . . . . . . . . Construction Impeded . | . . . . . . . . . . Haulers Reinforced . | . . . . . . . . . . Active Scanning Responses . | . . . . . . . . . . Cargo Convoy Interrupts . | . . . . . . . . . . Stealth | -11 -10 -10 -9 -9 -8 -7 -7 -6 -6 --------- Run | Scr Mat Min Mat Sto Mat Fac DSF Fac Ext Distress Signals 6 | . 1 . 1 . 3 . . 1 . Communications Jammed . | . . . . . . . . . . Distress Signals . | . . . . . . . . . . Times Spotted 70 | . 7 . 8 19 10 . 3 21 2 Peak Tracking Total 14 | . 5 . 11 14 11 . 4 11 3 Tactical Retreats 10 | . 1 . . 1 1 . 1 6 . Traps | -11 -10 -10 -9 -9 -8 -7 -7 -6 -6 ------- Run | Scr Mat Min Mat Sto Mat Fac DSF Fac Ext Traps Triggered 4 | . . . 2 . 1 . . 1 . Indirectly . | . . . . . . . . . . Trap Hack Attempts . | . . . . . . . . . . Triggered . | . . . . . . . . . . Disarmed . | . . . . . . . . . . Reprogrammed . | . . . . . . . . . . Reused . | . . . . . . . . . . Traps Extracted . | . . . . . . . . . . Installed . | . . . . . . . . . . Triggered . | . . . . . . . . . . Machines | -11 -10 -10 -9 -9 -8 -7 -7 -6 -6 ---------- Run | Scr Mat Min Mat Sto Mat Fac DSF Fac Ext Machines Disabled . | . . . . . . . . . . Max in Single Turn . | . . . . . . . . . . Machines Sabotaged . | . . . . . . . . . . Garrisons Compromised . | . . . . . . . . . . Overloaded Fab Kills . | . . . . . . . . . . Hacking | -11 -10 -10 -9 -9 -8 -7 -7 -6 -6 --------- Run | Scr Mat Min Mat Sto Mat Fac DSF Fac Ext Machines Accessed 5 | . . . . 1 . 1 . 3 . Terminals 4 | . . . . 1 . 1 . 2 . Fabricators 1 | . . . . . . . . 1 . Repair Stations . | . . . . . . . . . . Recycling Units . | . . . . . . . . . . Scanalyzers . | . . . . . . . . . . Garrison Access . | . . . . . . . . . . Total Hacks 9 | . . . . 4 . 1 . 4 . Successful 6 | . . . . 2 . 1 . 3 . Failed 3 | . . . . 2 . . . 1 . Catastrophic . | . . . . . . . . . . Database Lockouts . | . . . . . . . . . . Manual 4 | . . . . 4 . . . . . Terminals 7 | . . . . 4 . 1 . 2 . Fabricators 2 | . . . . . . . . 2 . Repair Stations . | . . . . . . . . . . Recycling Units . | . . . . . . . . . . Scanalyzers . | . . . . . . . . . . Garrison Access . | . . . . . . . . . . Terminal Hacks 4 | . . . . 1 . 1 . 2 . Open Door 1 | . . . . . . . . 1 . Open DSF 2 | . . . . . . 1 . 1 . Level Access Points 1 | . . . . 1 . . . . . Fabricator Hacks 1 | . . . . . . . . 1 . Build 1 | . . . . . . . . 1 . Repair Station Hacks . | . . . . . . . . . . Recycling Unit Hacks . | . . . . . . . . . . Scanalyzer . | . . . . . . . . . . Garrison Access Hacks . | . . . . . . . . . . Unauthorized Hacks 1 | . . . . 1 . . . . . Terminals 1 | . . . . 1 . . . . . Assimilate 1 | . . . . 1 . . . . . Fabricators . | . . . . . . . . . . Repair Stations . | . . . . . . . . . . Recycling Units . | . . . . . . . . . . Scanalyzers . | . . . . . . . . . . Garrison Access . | . . . . . . . . . . Data Cores Recovered . | . . . . . . . . . . Used . | . . . . . . . . . . Hacking Detections 3 | . . . . . . 1 . 2 . Full Trace Events . | . . . . . . . . . . Feedback Events . | . . . . . . . . . . Feedback Blocked . | . . . . . . . . . . Robot Schematics Acquired . | . . . . . . . . . . Robots Built . | . . . . . . . . . . Authchips . | . . . . . . . . . . Time 81 | . . . . . . . . 81 . Total Robot Build Rating . | . . . . . . . . . . Part Schematics Acquired . | . . . . . . . . . . Parts Built . | . . . . . . . . . . Authchips . | . . . . . . . . . . Time . | . . . . . . . . . . Total Part Build Rating . | . . . . . . . . . . Parts Repaired . | . . . . . . . . . . Time . | . . . . . . . . . . Parts Recycled . | . . . . . . . . . . Recycled Matter . | . . . . . . . . . . Retrieved Matter . | . . . . . . . . . . Retrieved Components . | . . . . . . . . . . Parts Scanalyzed . | . . . . . . . . . . Part Schematics Acquired . | . . . . . . . . . . Parts Damaged . | . . . . . . . . . . Bothacking | -11 -10 -10 -9 -9 -8 -7 -7 -6 -6 ------------ Run | Scr Mat Min Mat Sto Mat Fac DSF Fac Ext Used RIF Installer . | . . . . . . . . . . Robots Hacked . | . . . . . . . . . . Non-combat . | . . . . . . . . . . Combat . | . . . . . . . . . . Robot Hacks Applied . | . . . . . . . . . . Relay Couplers Released . | . . . . . . . . . . Fabnet Peak Effective % . | . . . . . . . . . . Robots Rewired . | . . . . . . . . . . Allies Hacked . | . . . . . . . . . . Hacks Repelled . | . . . . . . . . . . Allies | -11 -10 -10 -9 -9 -8 -7 -7 -6 -6 -------- Run | Scr Mat Min Mat Sto Mat Fac DSF Fac Ext Total Allies 1 | . . . . 1 . . . . . Largest Group 1 | . . . . 1 . . . . . Highest-Rated Group 10 | . . . . 10 . . . . . Highest-Rated Ally 10 | . . . . 10 . . . . . Total Orders . | . . . . . . . . . . Ally Attacks . | . . . . . . . . . . Total Damage . | . . . . . . . . . . Kills . | . . . . . . . . . . Allies Corrupted . | . . . . . . . . . . Allies Melted . | . . . . . . . . . . Intel | -11 -10 -10 -9 -9 -8 -7 -7 -6 -6 ------- Run | Scr Mat Min Mat Sto Mat Fac DSF Fac Ext Robot Analysis Total . | . . . . . . . . . . Derelict Logs Recovered . | . . . . . . . . . . Drone Launches . | . . . . . . . . . . Drone Recoveries . | . . . . . . . . . . Exploration | -11 -10 -10 -9 -9 -8 -7 -7 -6 -6 ------------- Run | Scr Mat Min Mat Sto Mat Fac DSF Fac Ext Turns Passed 608 | 9 37 12 43 83 42 2 55 283 42 Spaces Moved 864 | 18 74 18 84 157 82 5 36 308 82 Core 666 | 18 74 18 84 157 82 5 5 141 82 Treads . | . . . . . . . . . . Legs 167 | . . . . . . . 31 136 . Wheels . | . . . . . . . . . . Hover 30 | . . . . . . . . 30 . Flight 1 | . . . . . . . . 1 . Fastest Speed 35 | 50 50 50 50 50 50 50 50 35 50 Average Speed 64 | 50 50 50 50 50 50 50 112 84 50 Slowest Speed 130 | 50 50 50 50 50 50 50 126 130 50 Overloaded Moves . | . . . . . . . . . . Propulsion Burnouts . | . . . . . . . . . . Robots Hopped . | . . . . . . . . . . Cave-ins Triggered . | . . . . . . . . . . Exploration Rate (%) 22 | 3 31 7 17 51 18 . 41 17 19 Regions Visited 9 Branch Regions 3 Pre-discovered Areas . | . . . . . . . . . . Known Exits Taken 8 | 1 1 1 1 1 1 1 . 1 . Unknown Exits Taken . | . . . . . . . . . . Scrap Searched . | . . . . . . . . . . Spaces Dug . | . . . . . . . . . . Terrain Destroyed . | . . . . . . . . . . Melee . | . . . . . . . . . . Projectile . | . . . . . . . . . . AOE . | . . . . . . . . . . Terrain Rammed . | . . . . . . . . . . Walls Destroyed . | . . . . . . . . . . Machines Disabled . | . . . . . . . . . . Actions | -11 -10 -10 -9 -9 -8 -7 -7 -6 -6 --------- Run | Scr Mat Min Mat Sto Mat Fac DSF Fac Ext Total 894 | 17 73 20 84 161 82 4 46 325 82 Wait 6 | . . . . 1 . . . 5 . Move 856 | 17 73 17 83 157 81 4 35 307 82 Hop . | . . . . . . . . . . Pick Up 1 | . . . . . 1 . . . . Fast Attach 15 | . . . . . . . 8 7 . Attach 1 | . . . . . . . 1 . . Detach . | . . . . . . . . . . Swap . | . . . . . . . . . . Drop . | . . . . . . . . . . Fire . | . . . . . . . . . . Melee . | . . . . . . . . . . Ram 10 | . . 3 1 3 . . . 3 . Kick 5 | . . . . . . . 2 3 . Crush . | . . . . . . . . . . Escape Stasis . | . . . . . . . . . . Rewire . | . . . . . . . . . . Trap . | . . . . . . . . . . Miscellaneous . | . . . . . . . . . . Route ------- -11/Scrapyard -10/Materials -10/Mines -9/Materials -9/Storage -8/Materials -7/Factory -7/DSF -6/Factory -6/Extension History --------- Turn | Location | Event 3 | -11/Scrapyard | Identified exit to Materials 3 | -11/Scrapyard | Discovered exit to Materials (range 15) 10 | -11/Scrapyard | Entered Materials 10 | -10/Materials | Evolved 1 slot: Propulsion x1 39 | -10/Materials | Identified exit to Mines 39 | -10/Materials | Discovered exit to Mines (range 13) 47 | -10/Materials | Entered Mines 55 | -10/Mines | Identified exit to Materials 55 | -10/Mines | Discovered exit to Materials (range 5) 59 | -10/Mines | Entered Materials 59 | -9/Materials | Evolved 2 slots: Utility x2 100 | -9/Materials | Identified exit to Storage 100 | -9/Materials | Discovered exit to Storage (range 5) 102 | -9/Materials | Entered Storage 142 | -9/Storage | Identified exit to Materials 177 | -9/Storage | Core integrity fell below 50% 185 | -9/Storage | Entered Materials 185 | -8/Materials | Evolved 2 slots: Power x1, Propulsion x1 221 | -8/Materials | Identified exit to Factory 221 | -8/Materials | Discovered exit to Factory (range 14) 227 | -8/Materials | Entered Factory 227 | -7/Factory | Evolved 2 slots: Propulsion x2 229 | -7/Factory | Identified exit to DSF 229 | -7/Factory | Entered DSF 244 | -7/DSF | Additional patrols routed to DSF 268 | -7/DSF | Identified exit to Factory 268 | -7/DSF | Discovered exit to Factory (range 13) 284 | -7/DSF | Entered Factory 284 | -6/Factory | Evolved 2 slots: Propulsion x2 302 | -6/Factory | Spotted B-75 Beast 306 | -6/Factory | Build established: Hacker-Mutant 501 | -6/Factory | Core integrity fell below 50% 534 | -6/Factory | Lost 9 parts (2p6n1u) 559 | -6/Factory | Core integrity fell below 20% 563 | -6/Factory | Identified exit to Extension 563 | -6/Factory | Discovered exit to Extension (range 9) 567 | -6/Factory | Entered Extension 606 | -6/Extension | Spotted B-75 Beast 608 | -6/Extension | Spotted B-75 Beast 609 | -6/Extension | Self-destructed Last Messages --------------- 00502_ Penetrated by Slug. 00503_ Imp. VTOL Module destroyed. 00505_ K-01 Serf collects debris. 00517_ System corrupted: Heat flow error (+161). 00518_ Acquired Imp. Gravmag System. 00526_ Penetrated by Slug. 00529_ W-25 Informer distress signal alerts nearby ally. 00532_ Slug penetrates Wall. 00534_ ALERT: Rogue bot located, Programmers report to Factory Zone 7W. 00537_ Imp. Gravmag System destroyed. 00543_ ALERT: Security rotation in progress. 00557_ XMEWTIICB # 00561_ Penetrated by Slug. 00563_ Connecting with Door Terminal... >>Open(Door) Sealed Blast Doors opened. 00563_ EXIT=FOUND: EXTENSION 00566_ S-27 Virus destroyed. LOCATION=EXTENSION GOAL=ESCAPE Map ----- +----------------------------------------------------+ | ?????????????????????????????????????????????????? | | ?????????????????????????????????????????????????? | | ?????????????????????????????????????????????????? | | ?????????????????????????????????????????????????? | | ?????????????????????????????????????????????????? | | ?????????????????????????????????????????????????? | | ?????????????????????????????????????????????????? | | ?????????????????????????????????????????????????? | | ?????????????????????????????????????????????????? | | ?????????????????????????????????????????????????? | | ?????????????????????????????????????????????????? | | ?????????????????????????????????????????????????? | | ?????????????????????????????????????????????????? | | ?????????????????????????????????????????????????? | | ????????????????????????????????????#????????????? | | ????????????????????????????????### #????????????? | | ??????????????????????????????? ""Y ???????????? | | ??????????????????????????????? " ???????????? | | ?????????????????????????????? ??????????? | | ????????????????????????###?? ??????????? | | #########################;### ??????????? | | ?????????? | | t ?????????? | | ????????? | | k t u R ????????? | | @ ????????? | | ############################# BB B????????? | | ??????????????????????????????????? B????????? | | ?????????????????????????????????????????????????? | | ?????????????????????????????????????????????????? | | ?????????????????????????????????????????????????? | | ?????????????????????????????????????????????????? | | ?????????????????????????????????????????????????? | | ?????????????????????????????????????????????????? | | | | | | | | | | | | | | | | | | | | | | | | | | | | | | | | | +----------------------------------------------------+ Best States ------------- Heat Dissipation 37 Energy Generation 18 Energy Capacity 310 Matter Stores 181 Matter Capacity 300 Sight Range 16 Terrain Scan Density 10 Jamming Range 12 Resistance: KI 35 Resistance: TH 35 Resistance: EX 35 Resistance: EM 35 Resistance: I 35 Resistance: S 35 Resistance: P 35 Propulsion Shielding 33 Evasion (%) 55 Offensive Hacking 20 Item Schematics ----------------- None Robot Schematics ------------------ None Fabricated ------------ Nothing Alien Tech Used ----------------- None Achievements -------------- None Challenges ------------ None Game ------ Seed OpticalFusionInjector Manual? 0 Play Time 00:08:06 Cumulative 189.9 hours Start 2022.03.01 @ 06:29:46 End 2022.03.02 @ 07:29:34 Sessions 3 Manual Loads 0 Difficulty Explorer Special Mode None Game No. 294 Rogue 272 Adventurer 4 Explorer 18 Win Type - Total 10 Types 8/0/0/2/0/0/0/0/0 Lore% 68 Gallery% 85 Achievement% 70 Wizard Run 0 Options --------- ASCII 0 Keyboard 1 Movement Numpad Keybinds 0 Fullscreen 1 Font 18/SmallcapsGlow Map View 76x50 Tactical HUD 1 Map Filters NONE Filters NONE Steam 1 RUN: 5c644455-f695-4536-985f-a963bcda587e